bitfinex/quotes_SOLUSD_20260314
["timestamp","ask_amount","ask_price","bid_price","bid_amount"]
[1773488127001,12.71125826,86.858,86.833,0.4535593]
[1773488127208,0.72100001,86.858,86.833,0.4535593]
[1773488127508,0.4771408,86.857,86.833,0.4535593]
[1773488128088,0.4771408,86.856,86.833,0.4535593]
[1773488129710,0.4771408,86.849,86.821,11.51795072]
[1773488129913,0.4771408,86.839,86.824,7.34]
[1773488132502,0.4771408,86.839,86.817,11.97193753]
[1773488132808,0.4771408,86.839,86.817,19.31193753]
[1773488133018,11.99110454,86.852,86.821,0.4535593]
[1773488133213,0.4771408,86.851,86.821,0.4535593]
[1773488133511,0.4771408,86.849,86.821,0.4535593]
[1773488135205,0.4771408,86.849,86.822,11.51781806]
[1773488135406,0.4771408,86.849,86.823,0.4535593]
[1773488135718,0.4771408,86.848,86.823,0.4535593]
[1773488136721,0.4771408,86.848,86.824,11.51755275]
[1773488136919,0.4771408,86.848,86.825,0.4535593]
[1773488137400,0.4771408,86.846,86.825,0.4535593]
[1773488138822,0.4771408,86.844,86.825,0.4535593]
[1773488141307,0.4771408,86.844,86.826,11.51728744]
[1773488141913,0.4771408,86.844,86.826,11.97084674]
[1773488143121,0.4771408,86.844,86.827,0.4535593]
[1773488149024,0.46556829,86.842,86.811,28.79819377]
[1773488149225,0.46556829,86.842,86.812,7.34]
[1773488149527,0.46556829,86.842,86.813,0.4829607]
[1773488152032,0.4836733,86.839,86.815,0.49166953]
[1773488154017,0.4836733,86.844,86.817,0.49166953]
[1773488155714,0.4836733,86.844,86.819,0.49166953]
[1773488159944,0.4836733,86.844,86.82,11.51808339]
[1773488160232,0.4836733,86.844,86.821,7.34]
[1773488160936,0.4836733,86.849,86.822,0.49166953]
[1773488161331,0.4836733,86.849,86.821,7.34]
[1773488161918,0.4836733,86.839,86.812,11.51914481]
[1773488162119,11.51436993,86.848,86.807,0.49166953]
[1773488162120,0.4836733,86.829,86.807,0.49166953]
[1773488162422,11.51436993,86.848,86.808,7.34]
[1773488162423,0.4836733,86.819,86.808,7.34]
[1773488163734,28.78592483,86.848,86.81,0.49166953]
[1773488163735,0.4836733,86.827,86.81,0.49166953]
[1773488167642,0.4836733,86.827,86.811,11.51927751]
[1773488168542,0.4836733,86.827,86.811,12.01094704]
[1773488168733,0.4836733,86.827,86.813,11.51901212]
[1773488169931,0.4836733,86.827,86.813,0.49166953]
[1773488172145,0.4836733,86.827,86.809,11.5195429]
[1773488172345,0.4836733,86.827,86.81,7.34]
[1773488172546,0.4836733,86.827,86.811,0.49166953]
[1773488174326,0.4836733,86.827,86.813,0.49166953]
[1773488176949,0.4836733,86.827,86.814,11.51887944]
[1773488177246,103.4,86.861,86.821,0.49166953]
[1773488177452,12.23360494,86.862,86.831,0.49166953]
[1773488177651,12.23360494,86.862,86.833,0.49166953]
[1773488177950,46.00244607,86.952,86.842,0.49166953]
[1773488178156,3.76280488,86.88,86.842,0.49166953]
[1773488178732,11.51026139,86.879,86.844,0.49166953]
[1773488179145,0.4836733,86.878,86.844,0.49166953]
[1773488179445,0.4836733,86.878,86.845,7.34]
[1773488179648,0.4836733,86.903,86.861,0.49166953]
[1773488179852,0.4836733,86.889,86.863,0.49166953]
[1773488181648,0.4663876,86.887,86.863,0.49166953]
[1773488181847,0.4663876,86.869,86.836,0.48204973]
[1773488182049,0.4663876,86.859,86.837,7.34]
[1773488182253,0.4663876,86.859,86.837,7.82204973]
[1773488182431,0.4663876,86.859,86.838,0.48204973]
[1773488182852,0.4663876,86.849,86.831,0.48204973]
[1773488183156,0.4663876,86.849,86.83,7.34]
[1773488184140,0.4663876,86.849,86.828,7.34]
[1773488185358,0.4663876,86.849,86.828,7.82204973]
[1773488187059,0.4663876,86.847,86.828,7.82204973]
[1773488190559,0.4663876,86.847,86.828,0.48204973]
[1773488190765,0.4663876,86.847,86.827,7.34]
[1773488191849,0.4663876,86.839,86.812,11.51914481]
[1773488192556,0.4663876,86.839,86.812,12.00119454]
[1773488192767,0.4663876,86.839,86.813,0.48204973]
[1773488193963,0.4663876,86.839,86.814,12.00092917]
[1773488194156,0.4663876,86.839,86.814,11.51887944]
[1773488194351,0.4663876,86.839,86.815,0.48204973]
[1773488196665,0.4663876,86.829,86.811,7.34]
[1773488196865,0.4663876,86.829,86.812,11.51914481]
[1773488197073,0.4663876,86.829,86.812,12.00119454]
[1773488197370,0.4663876,86.829,86.813,0.48204973]
[1773488197868,0.4663876,86.837,86.813,0.48204973]
[1773488198066,0.4663876,86.837,86.814,7.34]
[1773488198667,0.4663876,86.837,86.814,7.82204973]
[1773488199886,0.4663876,86.837,86.815,0.48204973]
[1773488202676,0.4663876,86.835,86.815,0.48204973]
[1773488209274,0.47700433,86.833,86.812,11.51914481]
[1773488209578,0.47700433,86.829,86.812,18.85914481]
[1773488210166,0.47700433,86.829,86.803,0.45215179]
[1773488210366,0.47700433,86.829,86.807,7.34]
[1773488211481,0.47700433,86.829,86.799,11.52087005]
[1773488211662,103.4,86.867,86.79,0.2]
[1773488211663,3.76280488,86.81,86.795,7.34]
[1773488211864,0.46845069,86.809,86.795,7.34]
[1773488212186,11.51702215,86.828,86.796,0.4605219]
[1773488212682,11.51702215,86.828,86.797,0.4605219]
[1773488212683,3.76280488,86.82,86.797,0.4605219]
[1773488214090,0.46845069,86.819,86.798,11.52100278]
[1773488214388,0.46845069,86.819,86.799,0.4605219]
[1773488216576,0.46845069,86.819,86.8,11.52073732]
[1773488217270,0.46845069,86.819,86.8,11.98125922]
[1773488217780,0.46845069,86.819,86.8,11.52073732]
[1773488217986,0.46845069,86.819,86.801,0.4605219]
[1773488220590,3.76280488,86.82,86.803,0.4605219]
[1773488222195,0.46845069,86.819,86.799,0.4605219]
[1773488224297,0.46845069,86.819,86.801,0.4605219]
[1773488226686,0.46845069,86.819,86.802,11.52047187]
[1773488227094,0.46845069,86.819,86.803,0.4605219]
[1773488233604,0.46845069,86.819,86.791,11.52193199]
[1773488233808,0.46845069,86.809,86.792,7.8005219]
[1773488234100,0.46845069,86.809,86.793,0.4605219]
[1773488234809,0.46845069,86.809,86.791,11.52193199]
[1773488235015,0.46845069,86.799,86.784,7.34]
[1773488237202,0.46845069,86.799,86.782,11.52312691]
[1773488237439,3.76424096,86.8,86.785,0.4605219]
[1773488237696,0.46845069,86.804,86.785,0.4605219]
[1773488237941,11.51834872,86.818,86.785,0.4605219]
[1773488238214,3.76424096,86.81,86.785,0.4605219]
[1773488240016,3.76424096,86.81,86.786,11.52259581]
[1773488240215,3.76424096,86.81,86.787,0.4605219]
[1773488242296,3.76424096,86.81,86.789,0.49756159]
[1773488247714,3.76424096,86.81,86.79,11.52206475]
[1773488248015,11.81178158,86.828,86.791,0.49756159]
[1773488248206,11.81178158,86.828,86.792,0.49756159]
[1773488248716,0.29474586,86.827,86.792,0.49756159]
[1773488249314,3.76424096,86.82,86.794,0.49756159]
[1773488251823,4.05898682,86.82,86.796,0.49756159]
[1773488253318,0.29474586,86.825,86.798,0.49756159]
[1773488254118,3.76424096,86.82,86.798,0.49756159]
[1773488257129,0.29474586,86.819,86.799,11.52087005]
[1773488257332,0.29474586,86.819,86.8,7.34]
[1773488257626,0.29474586,86.819,86.8,0.49756159]
[1773488257828,0.29474586,86.819,86.802,0.49756159]
[1773488258011,0.29474586,86.829,86.802,0.49756159]
[1773488259425,0.29474586,86.826,86.802,0.49756159]
[1773488259631,3.76424096,86.82,86.802,0.49756159]
[1773488259831,0.29474586,86.826,86.804,0.49756159]
[1773488262936,3.76424096,86.82,86.804,0.49756159]
[1773488263237,0.29474586,86.819,86.804,0.49756159]
[1773488264131,0.29474586,86.809,86.781,0.49756159]
[1773488264323,40.31056395,86.826,86.783,0.49756159]
[1773488264324,3.76424096,86.8,86.783,0.49756159]
[1773488264840,0.29474586,86.805,86.783,0.49756159]
[1773488265736,4.05898682,86.81,86.783,0.49756159]
[1773488266529,4.05898682,86.81,86.785,0.49756159]
[1773488268863,4.05898682,86.81,86.787,0.48144944]
[1773488269363,0.29474586,86.809,86.787,0.48144944]
[1773488272862,0.29474586,86.809,86.789,0.47645094]
[1773488274050,3.76424096,86.81,86.789,0.47645094]
[1773488275754,3.76424096,86.81,86.791,0.47645094]
[1773488277173,3.76424096,86.81,86.786,7.34]
[1773488277174,3.76424096,86.81,86.793,0.47645094]
[1773488278682,3.76424096,86.81,86.794,11.52153374]
[1773488278876,3.76424096,86.81,86.795,0.47645094]
[1773488279674,0.29474586,86.814,86.795,0.47645094]
[1773488282573,0.29474586,86.814,86.791,0.47645094]
[1773488282778,0.29474586,86.809,86.791,0.47645094]
[1773488283151,0.29474586,86.809,86.787,11.52246304]
[1773488283352,0.29474586,86.809,86.787,18.86246304]
[1773488283871,3.76424096,86.8,86.783,11.52299413]
[1773488284070,0.29474586,86.799,86.783,11.52299413]
[1773488284989,0.29474586,86.799,86.784,0.47645094]
[1773488285482,0.29474586,86.809,86.784,0.47645094]
[1773488285867,0.29474586,86.809,86.786,0.47645094]
[1773488286785,11.5196756,86.808,86.785,11.52272858]
[1773488287082,0.29474586,86.807,86.785,11.52272858]
[1773488288769,0.29474586,86.799,86.785,11.52272858]
[1773488290785,0.29474586,86.799,86.785,18.86272858]
[1773488291280,0.29474586,86.799,86.78,11.72326039]
[1773488291479,0.29474586,86.789,86.769,7.34]
[1773488291778,3.76424096,86.78,86.769,7.34]
[1773488292166,4.05898682,86.78,86.765,7.34]
[1773488292856,4.05898682,86.78,86.765,18.86527089]
[1773488293686,4.06289221,86.78,86.765,18.86527089]
[1773488293876,3.76814635,86.78,86.766,0.47645094]
[1773488294057,0.29474586,86.789,86.766,0.47645094]
[1773488297078,0.29474586,86.789,86.767,11.52511899]
[1773488297278,0.29474586,86.789,86.768,0.47645094]
[1773488299560,0.29474586,86.789,86.769,11.52485334]
[1773488299783,0.29474586,86.789,86.77,0.47645094]
[1773488301873,0.29474586,86.789,86.771,11.5245877]
[1773488302069,0.29474586,86.789,86.772,0.45383784]
[1773488305779,0.29474586,86.789,86.773,11.97815992]
[1773488308195,0.29474586,86.789,86.774,0.45383784]
[1773488314701,0.29474586,86.837,86.777,0.45383784]
[1773488314903,3.76814635,86.82,86.781,0.45383784]
[1773488315206,4.06289221,86.82,86.781,0.45383784]
[1773488315789,0.29474586,86.825,86.791,0.45383784]
[1773488316503,0.29474586,86.825,86.793,0.45383784]
[1773488317710,11.51755275,86.824,86.795,0.45383784]
[1773488318210,0.29474586,86.85,86.801,0.45383784]
[1773488318390,0.29474586,86.85,86.821,0.45383784]
[1773488318391,3.26324978,86.85,86.821,0.45383784]
[1773488318591,3.26324978,86.85,86.822,5.51315038]
[1773488318791,3.76814635,86.84,86.822,5.51315038]
[1773488319106,0.47931009,86.839,86.822,5.51315038]
[1773488319292,3.76814635,86.84,86.822,5.51315038]
[1773488319487,3.76814635,86.84,86.81,3.76814635]
[1773488319789,0.47931009,86.844,86.811,7.34]
[1773488319985,11.51503287,86.843,86.812,11.51914481]
[1773488320583,11.51503287,86.843,86.813,0.45383784]
[1773488323809,11.51503287,86.843,86.815,0.45383784]
[1773488325397,0.47931009,86.867,86.817,2.95506722]
[1773488325596,0.47931009,86.869,86.83,2.62780262]
[1773488325816,0.47931009,86.867,86.831,9.23593678]
[1773488326112,0.47931009,86.859,86.83,1.48745889]
[1773488326318,0.47931009,86.859,86.83,3.76814635]
[1773488327094,0.47931009,86.859,86.818,11.51834872]
[1773488327095,0.47931009,86.857,86.831,1.29116619]
[1773488327290,0.47931009,86.857,86.832,6.53e-06]
[1773488327494,0.47931009,86.857,86.832,3.86e-06]
[1773488328520,0.47931009,86.857,86.821,11.51795072]
[1773488328712,0.47931009,86.857,86.823,11.5176854]
[1773488329418,0.47931009,86.857,86.824,0.49173773]
[1773488330702,0.47931009,86.857,86.823,40.31189891]
[1773488330703,0.47931009,86.857,86.826,0.49173773]
[1773488331507,0.47931009,86.857,86.831,0.46450133]
[1773488334093,3.76814635,86.86,86.833,0.46450133]
[1773488334698,0.46140277,86.861,86.833,0.46450133]
[1773488335834,0.46140277,86.859,86.833,0.46450133]
[1773488336599,0.46140277,86.859,86.835,0.46450133]
[1773488339316,0.46140277,86.859,86.836,11.51596112]
[1773488339617,0.46140277,86.859,86.837,0.46450133]
[1773488340624,3.76814635,86.87,86.841,0.46450133]
[1773488340822,11.51095119,86.874,86.843,0.46450133]
[1773488341208,3.76814635,86.87,86.843,0.46450133]
[1773488342705,0.46140277,86.869,86.845,0.46450133]
[1773488344833,0.46140277,86.869,86.847,0.46450133]
[1773488345022,15.27971649,86.87,86.847,0.46450133]
[1773488345023,11.51171892,86.868,86.847,0.46450133]
[1773488345212,0.46140277,86.867,86.847,0.46450133]
[1773488349336,0.46140277,86.867,86.849,0.46450133]
[1773488352436,0.72100001,86.878,86.851,0.46450133]
[1773488352733,0.72100001,86.878,86.853,0.46450133]
[1773488353139,0.52100001,86.878,86.853,0.46450133]
[1773488354845,0.52100001,86.878,86.855,0.46450133]
[1773488355724,0.46140277,86.881,86.855,0.46450133]
[1773488355926,0.46140277,86.881,86.857,0.46450133]
[1773488359745,0.46140277,86.881,86.859,0.46450133]
[1773488360951,0.46140277,86.881,86.861,0.46450133]
[1773488362929,0.46140277,86.881,86.863,0.46718071]
[1773488365849,0.46140277,86.881,86.865,0.46718071]
[1773488367539,0.49218668,86.898,86.867,0.46718071]
[1773488368838,0.49218668,86.896,86.869,0.46718071]
[1773488371866,0.49218668,86.896,86.87,11.51145389]
[1773488373140,0.49218668,86.896,86.873,0.46718071]
[1773488374943,0.49218668,86.896,86.875,0.46718071]
[1773488376546,0.49218668,86.896,86.871,0.46718071]
[1773488376948,0.49218668,86.894,86.871,0.46718071]
[1773488380671,0.49218668,86.894,86.872,11.51118887]
[1773488381364,0.49218668,86.894,86.872,11.97836958]
[1773488382443,0.49218668,86.889,86.868,0.46718071]
[1773488382651,0.49218668,86.889,86.867,11.51185145]
[1773488382845,0.49218668,86.879,86.847,28.78594963]
[1773488383043,0.49218668,86.869,86.847,28.78594963]
[1773488385465,0.49218668,86.869,86.847,40.76763285]
[1773488390586,0.49218668,86.869,86.85,0.45860797]
[1773488391368,0.45184022,86.878,86.851,0.45821965]
[1773488392875,0.45184022,86.878,86.853,0.45821965]
[1773488394781,0.96179997,86.892,86.87,3.75854324]
[1773488395079,0.96179997,86.892,86.854,40.29751076]
[1773488395080,0.45184022,86.889,86.872,0.45821965]
[1773488395259,0.45184022,86.889,86.871,7.34]
[1773488395650,0.45184022,86.879,86.867,7.34]
[1773488396066,0.45184022,86.879,86.858,0.45821965]
[1773488396375,0.45184022,86.879,86.859,7.34]
[1773488398877,0.45184022,86.879,86.86,11.51277918]
[1773488400782,0.45184022,86.869,86.859,7.34]
[1773488400957,0.45184022,86.869,86.859,18.85281564]
[1773488408063,0.45184022,86.869,86.859,11.51281564]
[1773488411570,0.45184022,86.879,86.859,11.51281564]
[1773488419094,0.45184022,86.877,86.857,0.45821965]
[1773488420379,0.45184022,86.877,86.858,0.45821965]
[1773488422981,0.45184022,86.877,86.859,11.51291173]
[1773488425297,0.49685733,86.869,86.844,18.85490028]
[1773488427302,0.49685733,86.869,86.847,0.40376727]
[1773488428884,0.49685733,86.869,86.849,0.40376727]
[1773488431399,0.49685733,86.869,86.85,11.51410477]
[1773488431603,0.49685733,86.869,86.851,0.40376727]
[1773488433596,0.49685733,86.869,86.852,11.51383963]
[1773488433793,0.49685733,86.869,86.851,0.40376727]
[1773488434010,0.49685733,86.869,86.852,11.51383963]
[1773488435510,0.49685733,86.869,86.852,11.9176069]
[1773488435691,0.49685733,86.869,86.853,0.40376727]
[1773488437514,0.49685733,86.869,86.854,11.5135745]
[1773488440093,0.49685733,86.869,86.854,11.91734177]
[1773488444014,0.49685733,86.869,86.854,11.5135745]
[1773488444219,0.49685733,86.889,86.855,0.40376727]
[1773488444399,0.49685733,86.889,86.857,0.40376727]
[1773488445126,0.49685733,86.889,86.861,0.40376727]
[1773488450016,0.48113887,86.887,86.862,11.91628137]
[1773488451428,0.48113887,86.887,86.863,0.40376727]
[1773488452930,0.48113887,86.887,86.864,11.51224903]
[1773488454633,0.48113887,86.887,86.864,0.40376727]
[1773488456035,0.48113887,86.887,86.866,0.40376727]
[1773488462242,0.48113887,86.887,86.868,0.40376727]
[1773488464449,0.48113887,86.887,86.85,3.75937565]
[1773488464450,0.45014167,86.879,86.852,0.40376727]
[1773488465545,0.45014167,86.879,86.854,0.40376727]
[1773488467445,0.45014167,86.879,86.855,11.51344194]
[1773488468447,0.45014167,86.879,86.856,0.40376727]
[1773488470834,0.45014167,86.879,86.857,11.51317683]
[1773488471034,0.45014167,86.879,86.858,0.40376727]
[1773488472147,0.45014167,86.885,86.858,0.40376727]
[1773488473037,0.45014167,86.885,86.86,0.40376727]
[1773488474942,0.45014167,86.885,86.862,0.40376727]
[1773488475452,3.75937565,86.89,86.862,0.40376727]
[1773488475453,0.45014167,86.883,86.862,0.40376727]
[1773488475642,4.20951732,86.88,86.862,0.40376727]
[1773488475844,0.45014167,86.879,86.862,0.40376727]
[1773488477047,0.45014167,86.879,86.864,0.40376727]
[1773488477632,11.50895174,86.889,86.864,0.40376727]
[1773488477837,0.45014167,86.888,86.864,0.40376727]
[1773488478553,0.45014167,86.886,86.864,0.40376727]
[1773488479648,0.45014167,86.884,86.864,0.40376727]
[1773488480243,0.45014167,86.884,86.866,0.40376727]
[1773488481162,3.75892854,86.88,86.845,7.34]
[1773488481375,0.5,86.879,86.846,11.5146351]
[1773488486745,0.5,86.879,86.846,40.30122285]
[1773488493063,0.5,86.879,86.846,28.78658775]
[1773488493267,0.5,86.877,86.847,7.34]
[1773488497065,0.5,86.877,86.848,11.51436993]
[1773488497367,0.5,86.889,86.848,40.30029476]
[1773488498474,0.5,86.886,86.848,40.30029476]
[1773488498971,0.5,86.886,86.849,7.34]
[1773488500073,0.5,86.886,86.85,3.75892854]
[1773488502977,0.5,86.886,86.851,40.29890271]
[1773488527293,11.50946653,86.885,86.851,40.29890271]
[1773488527483,0.5,86.884,86.851,40.29890271]
[1773488529103,3.75892854,86.88,86.851,40.29890271]
[1773488529295,0.5,86.879,86.851,40.29890271]
[1773488530504,0.5,86.878,86.851,40.29890271]
[1773488552416,0.5,86.904,86.87,3.75948379]
[1773488552600,0.5,86.901,86.871,7.34]
[1773488552801,0.5,86.907,86.871,7.34]
[1773488554222,0.5,86.907,86.872,7.34]
[1773488554732,7.64907987,86.918,86.873,97.84397912]
[1773488554934,7.64907987,86.918,86.89,3.75948379]
[1773488555220,0.5,86.899,86.873,40.28869728]
[1773488555413,0.5,86.899,86.874,7.34]
[1773488555810,0.5,86.899,86.873,11.51105636]
[1773488556009,0.5,86.889,86.874,7.34]
[1773488556211,0.5,86.889,86.862,28.78107037]
[1773488556212,0.5,86.889,86.875,7.34]
[1773488557509,0.5,86.889,86.876,11.51065887]
[1773488559831,3.75948379,86.9,86.876,11.97594818]
[1773488561809,0.49839767,86.899,86.876,11.97594818]
[1773488564024,0.49839767,86.898,86.876,0.46528931]
[1773488564342,0.49839767,86.889,86.855,0.46528931]
[1773488564635,0.49839767,86.879,86.855,0.46528931]
[1773488566111,0.49839767,86.879,86.857,0.46528931]
[1773488569453,0.49839767,86.879,86.858,11.98487374]
[1773488569828,0.49839767,86.879,86.859,0.47182947]
[1773488571152,0.49839767,86.879,86.861,0.47182947]
[1773488573032,0.49839767,86.879,86.862,11.5125141]
[1773488573350,0.49839767,86.879,86.862,12.00282004]
[1773488574853,0.49839767,86.879,86.863,0.49030594]
[1773488576354,0.49839767,86.879,86.864,11.51224903]
[1773488577653,0.49839767,86.879,86.863,0.49030594]
[1773488578962,0.49839767,86.879,86.863,12.0025848]
[1773488580054,0.49839767,86.879,86.864,0.49030594]
[1773488580554,11.50842134,86.893,86.864,0.49030594]
[1773488580730,11.50721502,86.902,86.864,0.49030594]
[1773488581358,11.50721502,86.902,86.871,0.49030594]
[1773488581957,11.50721502,86.902,86.873,0.49030594]
[1773488582259,0.72100001,86.903,86.873,0.49030594]
[1773488582754,0.4936927,86.902,86.873,0.49030594]
[1773488584059,0.4936927,86.899,86.875,0.49030594]
[1773488586960,0.4936927,86.899,86.877,0.49030594]
[1773488587342,3.75948379,86.9,86.877,0.49030594]
[1773488588749,3.75948379,86.9,86.879,0.49030594]
[1773488588951,4.25317649,86.9,86.879,0.49030594]
[1773488589863,0.4936927,86.899,86.881,0.49030594]
[1773488590252,0.72100001,86.918,86.881,0.49030594]
[1773488590253,0.4936927,86.915,86.881,0.49030594]
[1773488590458,0.4936927,86.909,86.882,0.49030594]
[1773488591862,0.4936927,86.908,86.877,0.49030594]
[1773488592074,0.4936927,86.889,86.872,0.49030594]
[1773488596558,0.4936927,86.889,86.873,0.49030594]
[1773488597066,0.4936927,86.889,86.875,0.49030594]
[1773488598047,0.4936927,86.902,86.875,0.49030594]
[1773488599068,0.4936927,86.902,86.876,11.51065887]
[1773488599266,0.4936927,86.902,86.877,0.49030594]
[1773488601681,0.4936927,86.902,86.879,0.45257093]
[1773488602170,103.4,86.917,86.881,0.45257093]
[1773488602358,11.50536149,86.916,86.881,0.45257093]
[1773488603280,11.50536149,86.916,86.891,0.45257093]
[1773488603473,0.72100001,86.918,86.891,0.45257093]
[1773488603979,0.72100001,86.918,86.89,3.75705312]
[1773488603980,0.72100001,86.918,86.893,0.45257093]
[1773488607390,0.72100001,86.918,86.895,0.45257093]
[1773488607587,0.72100001,86.918,86.901,0.45257093]
[1773488608395,15.36069189,86.93,86.902,0.45257093]
[1773488608396,0.1,86.93,86.902,0.45257093]
[1773488609392,0.1,86.93,86.904,0.45257093]
[1773488609894,0.45534046,86.929,86.903,11.5070826]
[1773488610594,0.45534046,86.929,86.903,11.95965353]
[1773488610784,0.45534046,86.929,86.904,0.45257093]
[1773488613007,0.45534046,86.919,86.898,0.45257093]
[1773488613208,0.45534046,86.919,86.898,11.96031564]
[1773488614599,0.45534046,86.919,86.899,0.45257093]
[1773488615298,0.45534046,86.919,86.9,11.50747986]
[1773488615788,0.45534046,86.919,86.901,0.45257093]
[1773488616705,0.45534046,86.928,86.901,0.45257093]
[1773488617483,0.45534046,86.928,86.902,11.50721502]
[1773488617685,0.1,86.93,86.903,0.45257093]
[1773488619295,0.1,86.93,86.905,0.45257093]
[1773488621018,0.1,86.93,86.906,11.50668538]
[1773488621188,0.1,86.93,86.907,0.45257093]
[1773488624029,0.1,86.93,86.909,0.45257093]
[1773488625091,0.1,86.93,86.911,0.45257093]
[1773488625405,0.55534046,86.93,86.911,0.45257093]
[1773488629412,0.1,86.93,86.913,0.50273679]
[1773488630797,0.1,86.93,86.915,0.50273679]
[1773488632705,0.1,86.94,86.921,0.47303772]
[1773488633014,0.1,86.94,86.922,0.47303772]
[1773488634021,0.1,86.94,86.924,0.47303772]
[1773488636000,0.1,86.94,86.926,0.47303772]
[1773488637120,0.57256179,86.94,86.926,0.47303772]
[1773488640309,0.57256179,86.94,86.927,11.50390557]
[1773488640509,0.57256179,86.94,86.927,11.97694329]
[1773488643528,0.1,86.94,86.928,0.47303772]
[1773488648117,0.1,86.94,86.929,11.5036409]
[1773488658254,0.1,86.94,86.929,0.47303772]
[1773488659537,0.1,86.95,86.931,0.47303772]
[1773488661744,0.58387472,86.95,86.933,0.48757723]
[1773488663937,0.48387472,86.939,86.913,19.33333586]
[1773488664335,0.48387472,86.939,86.914,0.48757723]
[1773488666046,0.48387472,86.939,86.915,11.50549387]
[1773488666345,0.48387472,86.939,86.916,0.48757723]
[1773488669149,0.48387472,86.939,86.917,11.99280635]
[1773488672435,0.48387472,86.939,86.917,11.50522912]
[1773488674148,0.48387472,86.937,86.914,7.82757723]
[1773488674456,0.48387472,86.937,86.915,0.48757723]
[1773488675537,0.48387472,86.937,86.916,0.48757723]
[1773488676570,0.48387472,86.937,86.917,11.50522912]
[1773488676737,0.48387472,86.937,86.917,11.99280635]
[1773488678138,0.48387472,86.937,86.917,11.50522912]
[1773488678461,0.48387472,86.937,86.918,0.48757723]
[1773488679954,0.48387472,86.943,86.92,0.48757723]
[1773488682754,0.48387472,86.943,86.922,0.48757723]
[1773488682966,0.48387472,86.929,86.902,0.48757723]
[1773488683169,0.48387472,86.929,86.903,0.48757723]
[1773488684449,0.48387472,86.929,86.902,7.34]
[1773488684450,0.48387472,86.929,86.905,0.48757723]
[1773488685170,0.48387472,86.939,86.905,0.48757723]
[1773488687055,0.48387472,86.939,86.906,11.50668538]
[1773488687251,0.48387472,86.939,86.907,0.48757723]
[1773488687465,0.48387472,86.929,86.907,0.48757723]
[1773488690066,0.48387472,86.929,86.909,0.50554548]
[1773488691052,0.48387472,86.929,86.91,11.50615579]
[1773488691950,0.48387472,86.929,86.91,11.98897013]
[1773488692369,0.48387472,86.929,86.91,11.50615579]
[1773488692561,0.48387472,86.929,86.911,0.48281434]
[1773488695572,0.48387472,86.929,86.912,11.50589101]
[1773488695971,0.48387472,86.929,86.912,11.98870535]
[1773488696665,0.48387472,86.929,86.913,0.48281434]
[1773488699092,0.48387472,86.929,86.914,11.50562625]
[1773488699276,0.48387472,86.929,86.914,11.98844059]
[1773488700998,0.50665227,86.919,86.893,0.48281434]
[1773488701160,0.50665227,86.909,86.895,11.50804234]
[1773488701585,0.50665227,86.909,86.895,11.99085668]
[1773488702383,0.50665227,86.909,86.896,0.48281434]
[1773488704280,3.75230719,86.92,86.896,0.48281434]
[1773488704486,0.50665227,86.923,86.898,0.48281434]
[1773488704793,0.50665227,86.919,86.898,0.48281434]
[1773488706764,0.50665227,86.919,86.9,0.48281434]
[1773488708783,3.75230719,86.92,86.902,0.48281434]
[1773488708985,7.27436686,86.93,86.902,0.48281434]
[1773488710286,7.27436686,86.93,86.904,0.48281434]
[1773488710884,7.27436686,86.93,86.911,0.48281434]
[1773488712788,7.27436686,86.93,86.912,11.50589101]
[1773488712985,7.27436686,86.93,86.913,0.48281434]
[1773488715889,0.50665227,86.945,86.916,0.48281434]
[1773488716193,0.50665227,86.945,86.921,0.48281434]
[1773488717391,0.50665227,86.945,86.922,11.50456731]
[1773488717574,0.50665227,86.945,86.923,0.48281434]
[1773488723909,0.51764815,86.939,86.911,11.5060234]
[1773488725493,0.51764815,86.939,86.911,12.00450399]
[1773488726217,0.51764815,86.937,86.911,12.00450399]
[1773488727210,0.51764815,86.937,86.911,11.5060234]
[1773488727406,3.75310121,86.93,86.912,0.49848059]
[1773488727613,0.51764815,86.929,86.912,0.49848059]
[1773488732803,0.51764815,86.929,86.913,11.50575863]
[1773488733008,0.51764815,86.929,86.913,12.00423922]
[1773488733193,0.51764815,86.929,86.908,0.49848059]
[1773488734692,0.51764815,86.929,86.91,0.49848059]
[1773488735700,0.51764815,86.929,86.911,12.00450399]
[1773488738120,0.51764815,86.929,86.912,0.49848059]
[1773488738918,0.51764815,86.928,86.912,0.49848059]
[1773488741119,0.51764815,86.928,86.912,12.0043387]
[1773488743023,0.51764815,86.928,86.913,0.49848059]
[1773488744222,0.51764815,86.928,86.914,12.00410684]
[1773488745420,0.51764815,86.936,86.915,0.49848059]
[1773488746617,0.51764815,86.929,86.902,0.49848059]
[1773488746817,11.50260754,86.937,86.902,0.49848059]
[1773488748022,11.50260754,86.937,86.904,0.49848059]
[1773488748324,7.35053825,86.947,86.904,0.49848059]
[1773488748823,0.14354962,86.946,86.904,0.49848059]
[1773488749509,0.14354962,86.945,86.906,0.47245078]
[1773488750010,3.8971504,86.94,86.906,0.47245078]
[1773488750319,0.14404919,86.939,86.906,0.47245078]